[Event "Mistrovství Čech mládeže 2023 - HD14"]
[Site "Harrachov, Czech Republic"]
[Date "2023.10.23"]
[Round "3.8"]
[White "Chon, Jeremy"]
[Black "Švadlenka, Dominik"]
[Result "1/2-1/2"]
[TimeControl "90m + 30s"]
[WhiteElo "1538"]
[BlackElo "1710"]

1. Nf3 {[%clk 01:30:59]} {[%emt 00:00:01]} d5 {[%clk 01:30:56]} {[%emt
00:00:04]} 2. d4 {[%clk 01:31:28]} Nf6 {[%clk 01:31:20]} {[%emt 00:00:05]} 3.
Bf4 {[%clk 01:31:44]} {[%emt 00:00:14]} c5 {[%clk 01:31:45]} {[%emt 00:00:05]}
4. e3 {[%clk 01:32:11]} {[%emt 00:00:03]} Nc6 {[%clk 01:32:10]} {[%emt
00:00:05]} 5. c3 {[%clk 01:32:27]} {[%emt 00:00:14]} Qb6 {[%clk 01:32:34]}
{[%emt 00:00:06]} 6. b3 {[%clk 01:31:41]} {[%emt 00:01:16]} Bf5 {[%clk
01:31:52]} {[%emt 00:01:11]} 7. Bd3 {[%clk 01:31:38]} {[%emt 00:00:35]} Bxd3
{[%clk 01:31:41]} {[%emt 00:00:41]} 8. Qxd3 {[%clk 01:32:07]} {[%emt 00:00:02]}
e6 {[%clk 01:31:38]} {[%emt 00:00:32]} 9. Nbd2 {[%clk 01:31:06]} {[%emt
00:01:31]} Be7 {[%clk 01:30:40]} {[%emt 00:01:28]} 10. O-O {[%clk 01:31:00]}
{[%emt 00:00:36]} O-O {[%clk 01:31:02]} {[%emt 00:00:08]} 11. Ne5 {[%clk
01:21:33]} {[%emt 00:09:58]} Rac8 {[%clk 01:28:31]} {[%emt 00:03:00]} 12. Bg5
{[%clk 01:09:58]} {[%emt 00:12:06]} Rfd8 {[%clk 01:25:31]} {[%emt 00:03:31]} 13.
f4 {[%clk 01:06:04]} {[%emt 00:04:23]} h6 {[%clk 01:22:30]} {[%emt 00:03:30]}
14. Bh4 {[%clk 00:55:40]} {[%emt 00:10:54]} cxd4 {[%clk 01:17:52]} {[%emt
00:05:08]} 15. exd4 {[%clk 00:55:37]} {[%emt 00:00:33]} Qc7 {[%clk 01:15:52]}
{[%emt 00:02:31]} 16. Rf3 {[%clk 00:53:51]} {[%emt 00:02:16]} Ne8 {[%clk
01:10:44]} {[%emt 00:05:38]} 17. Nxc6 {[%clk 00:48:36]} {[%emt 00:05:45]} bxc6
{[%clk 01:11:03]} {[%emt 00:00:10]} 18. Bxe7 {[%clk 00:48:47]} {[%emt
00:00:19]} Qxe7 {[%clk 01:11:28]} {[%emt 00:00:05]} 19. b4 {[%clk 00:47:08]}
{[%emt 00:02:09]} Nd6 {[%clk 01:10:35]} {[%emt 00:01:23]} 20. Re1 {[%clk
00:39:50]} {[%emt 00:07:48]} Qc7 {[%clk 01:04:24]} {[%emt 00:06:41]} 21. Nb3
{[%clk 00:24:16]} {[%emt 00:16:04]} Nc4 {[%clk 01:01:19]} {[%emt 00:03:35]} 22.
f5 {[%clk 00:19:24]} {[%emt 00:05:22]} exf5 {[%clk 01:00:18]} {[%emt 00:01:31]}
23. Rxf5 {[%clk 00:16:26]} {[%emt 00:03:29]} Re8 {[%clk 00:58:32]} {[%emt
00:02:16]} 24. Rff1 {[%clk 00:14:31]} {[%emt 00:02:25]} Nd6 {[%clk 00:48:30]}
{[%emt 00:10:31]} 25. Qg3 {[%clk 00:13:26]} {[%emt 00:01:35]} Ne4 {[%clk
00:39:12]} {[%emt 00:09:49]} 26. Qxc7 {[%clk 00:11:44]} {[%emt 00:02:12]} Rxc7
{[%clk 00:39:37]} {[%emt 00:00:05]} 27. Re3 {[%clk 00:10:19]} {[%emt 00:01:55]}
Rce7 {[%clk 00:38:20]} {[%emt 00:01:47]} 28. Rfe1 {[%clk 00:10:01]} {[%emt
00:00:48]} Re6 {[%clk 00:37:44]} {[%emt 00:01:05]} 29. Na5 {[%clk 00:07:09]}
{[%emt 00:03:22]} Nxc3 {[%clk 00:19:20]} {[%emt 00:18:54]} 30. Rxe6 {[%clk
00:07:17]} {[%emt 00:00:22]} Rxe6 {[%clk 00:19:28]} {[%emt 00:00:22]} 31. Rxe6
{[%clk 00:07:40]} {[%emt 00:00:06]} fxe6 {[%clk 00:19:54]} {[%emt 00:00:04]} 32.
Nxc6 {[%clk 00:07:56]} {[%emt 00:00:15]} Nxa2 {[%clk 00:20:13]} {[%emt
00:00:11]} 33. b5 {[%clk 00:07:28]} {[%emt 00:00:58]} Kf7 {[%clk 00:20:23]}
{[%emt 00:00:19]} 34. Nxa7 {[%clk 00:07:37]} {[%emt 00:00:21]} Ke7 {[%clk
00:20:31]} {[%emt 00:00:21]} 35. Kf2 {[%clk 00:05:14]} {[%emt 00:02:54]} Kd7
{[%clk 00:20:17]} {[%emt 00:00:44]} 36. Ke3 {[%clk 00:04:32]} {[%emt 00:01:12]}
Nb4 {[%clk 00:15:30]} {[%emt 00:05:17]} 37. Kd2 {[%clk 00:01:59]} {[%emt
00:03:03]} Kc7 38. Kc3 {[%clk 00:01:59]} 1/2-1/2

[Event "Mistrovství Čech mládeže 2023 - HD14"]
[Site "Harrachov, Czech Republic"]
[Date "2023.10.23"]
[Round "3.9"]
[White "Kravchenko, Andrey"]
[Black "Bělaška, Václav"]
[Result "1/2-1/2"]
[TimeControl "90m + 30s"]
[WhiteElo "1541"]
[BlackElo "1666"]

1. c4 {[%clk 01:30:58]} {[%emt 00:00:01]} Nf6 {[%clk 01:30:48]} {[%emt
00:00:12]} 2. g3 {[%clk 01:31:20]} {[%emt 00:00:07]} e6 {[%clk 01:30:41]}
{[%emt 00:00:37]} 3. Bg2 {[%clk 01:31:41]} {[%emt 00:00:09]} d5 {[%clk
01:31:07]} {[%emt 00:00:05]} 4. d4 {[%clk 01:32:02]} {[%emt 00:00:08]} c6
{[%clk 01:31:29]} {[%emt 00:00:08]} 5. Nf3 {[%clk 01:32:27]} {[%emt 00:00:05]}
Be7 {[%clk 01:31:23]} {[%emt 00:00:36]} 6. O-O {[%clk 01:32:50]} {[%emt
00:00:08]} O-O {[%clk 01:31:50]} {[%emt 00:00:03]} 7. Nc3 {[%clk 01:33:08]}
{[%emt 00:00:11]} b6 {[%clk 01:32:05]} {[%emt 00:00:15]} 8. Qc2 {[%clk
01:32:54]} {[%emt 00:00:44]} Ba6 {[%clk 01:31:32]} {[%emt 00:01:04]} 9. b3
{[%clk 01:27:31]} {[%emt 00:05:52]} Nbd7 {[%clk 01:29:09]} {[%emt 00:02:54]} 10.
Rd1 {[%clk 01:23:13]} {[%emt 00:04:47]} Rc8 {[%clk 01:26:14]} {[%emt 00:03:26]}
11. e4 {[%clk 01:21:07]} {[%emt 00:02:36]} dxc4 {[%clk 01:17:15]} {[%emt
00:09:29]} 12. bxc4 {[%clk 01:21:24]} {[%emt 00:00:13]} Bxc4 {[%clk 01:17:30]}
{[%emt 00:00:14]} 13. a4 {[%clk 01:11:00]} {[%emt 00:10:54]} b5 {[%clk
01:09:15]} {[%emt 00:08:46]} 14. Nd2 {[%clk 01:07:04]} {[%emt 00:04:22]} c5
{[%clk 01:02:09]} {[%emt 00:07:39]} 15. d5 {[%clk 00:58:11]} {[%emt 00:09:23]}
exd5 {[%clk 01:02:03]} {[%emt 00:00:36]} 16. exd5 {[%clk 00:58:31]} {[%emt
00:00:09]} Ne5 {[%clk 00:46:19]} {[%emt 00:16:15]} 17. Nxc4 {[%clk 00:53:29]}
{[%emt 00:05:31]} bxc4 {[%clk 00:45:48]} {[%emt 00:01:02]} 18. Nb5 {[%clk
00:52:02]} {[%emt 00:01:54]} Qd7 {[%clk 00:36:15]} {[%emt 00:10:06]} 19. Bf4
{[%clk 00:43:40]} {[%emt 00:08:50]} Nd3 {[%clk 00:31:55]} {[%emt 00:04:51]} 20.
d6 {[%clk 00:31:48]} {[%emt 00:12:19]} Bd8 {[%clk 00:30:50]} {[%emt 00:01:38]}
21. Rab1 {[%clk 00:31:17]} {[%emt 00:01:00]} Nxf4 {[%clk 00:29:08]} {[%emt
00:02:12]} 22. gxf4 {[%clk 00:31:40]} {[%emt 00:00:07]} Ne8 {[%clk 00:28:10]}
{[%emt 00:01:28]} 23. Na3 {[%clk 00:29:13]} {[%emt 00:02:57]} Nxd6 {[%clk
00:24:01]} {[%emt 00:04:40]} 24. Nxc4 {[%clk 00:29:34]} {[%emt 00:00:08]} Bc7
{[%clk 00:24:20]} {[%emt 00:00:11]} 25. Rb7 {[%clk 00:26:21]} {[%emt 00:03:42]}
Qf5 {[%clk 00:21:50]} {[%emt 00:03:01]} 26. Qxf5 {[%clk 00:22:46]} {[%emt
00:04:05]} Nxf5 {[%clk 00:22:07]} {[%emt 00:00:14]} 27. Bh3 {[%clk 00:21:36]}
{[%emt 00:01:36]} g6 {[%clk 00:21:31]} {[%emt 00:01:09]} 28. Rd7 {[%clk
00:20:13]} {[%emt 00:01:53]} Bxf4 {[%clk 00:21:23]} {[%emt 00:00:39]} 29. Rxa7
{[%clk 00:20:12]} {[%emt 00:00:29]} Nd4 {[%clk 00:17:02]} {[%emt 00:04:52]} 30.
Rab7 {[%clk 00:16:34]} {[%emt 00:04:04]} Rb8 {[%clk 00:14:53]} {[%emt
00:02:43]} 1/2-1/2

[Event "Mistrovství Čech mládeže 2023 - HD14"]
[Site "Harrachov, Czech Republic"]
[Date "2023.10.23"]
[Round "3.10"]
[White "Křivka, Matěj"]
[Black "Seidl, Václav"]
[Result "1-0"]
[TimeControl "90m + 30s"]
[WhiteElo "1665"]
[BlackElo "1478"]

1. e4 {[%clk 01:30:57]} {[%emt 00:00:02]} c5 {[%clk 01:30:54]} {[%emt
00:00:06]} 2. Nf3 {[%clk 01:31:23]} {[%emt 00:00:04]} d6 {[%clk 01:31:21]}
{[%emt 00:00:04]} 3. d4 {[%clk 01:31:48]} {[%emt 00:00:05]} cxd4 {[%clk
01:31:47]} {[%emt 00:00:04]} 4. Qxd4 {[%clk 01:32:14]} {[%emt 00:00:04]} Nc6
{[%clk 01:31:55]} {[%emt 00:00:22]} 5. Bb5 {[%clk 01:32:31]} {[%emt 00:00:12]}
Bd7 {[%clk 01:32:19]} {[%emt 00:00:07]} 6. Bxc6 {[%clk 01:32:50]} {[%emt
00:00:10]} bxc6 {[%clk 01:32:00]} {[%emt 00:00:48]} 7. Nc3 {[%clk 01:30:29]}
{[%emt 00:02:51]} c5 {[%clk 01:29:21]} {[%emt 00:03:09]} 8. Qd3 {[%clk
01:30:11]} {[%emt 00:00:46]} Nf6 {[%clk 01:27:02]} {[%emt 00:02:50]} 9. Bg5
{[%clk 01:29:43]} {[%emt 00:00:58]} Bc6 {[%clk 01:24:27]} {[%emt 00:03:04]} 10.
O-O {[%clk 01:26:15]} {[%emt 00:03:59]} h6 {[%clk 01:21:38]} {[%emt 00:03:20]}
11. Bh4 {[%clk 01:25:31]} {[%emt 00:01:13]} e5 {[%clk 01:17:46]} {[%emt
00:04:21]} 12. Bxf6 {[%clk 01:21:18]} {[%emt 00:04:43]} Qxf6 {[%clk 01:12:36]}
{[%emt 00:05:41]} 13. Nd5 {[%clk 01:20:05]} {[%emt 00:01:43]} Qd8 {[%clk
01:11:36]} {[%emt 00:01:30]} 14. Nd2 {[%clk 01:18:54]} {[%emt 00:01:42]} Qd7
{[%clk 01:08:21]} {[%emt 00:03:42]} 15. f4 {[%clk 01:15:08]} {[%emt 00:04:18]}
Qb7 {[%clk 01:04:38]} {[%emt 00:04:11]} 16. Nc4 {[%clk 01:05:09]} {[%emt
00:10:31]} Bxd5 {[%clk 01:02:58]} {[%emt 00:02:10]} 17. exd5 {[%clk 01:05:28]}
{[%emt 00:00:11]} exf4 {[%clk 00:48:46]} {[%emt 00:14:41]} 18. Rae1+ {[%clk
01:04:04]} {[%emt 00:01:53]} Kd8 {[%clk 00:47:20]} {[%emt 00:01:55]} 19. Rxf4
{[%clk 01:03:05]} {[%emt 00:01:30]} Qd7 {[%clk 00:39:29]} {[%emt 00:08:20]} 20.
Na5 {[%clk 00:58:33]} {[%emt 00:05:03]} Kc7 {[%clk 00:35:06]} {[%emt 00:04:50]}
21. Qa6 {[%clk 00:57:15]} {[%emt 00:01:50]} Kb8 {[%clk 00:25:43]} {[%emt
00:09:54]} 22. Re8+ {[%clk 00:56:33]} {[%emt 00:01:13]} 1-0

[Event "Mistrovství Čech mládeže 2023 - HD14"]
[Site "Harrachov, Czech Republic"]
[Date "2023.10.23"]
[Round "3.12"]
[White "Ausperger, Vít"]
[Black "Chernyy, Andrey"]
[Result "1/2-1/2"]
[TimeControl "90m + 30s"]
[WhiteElo "1302"]
[BlackElo "1655"]

1. d4 {[%clk 01:30:58]} d5 {[%clk 01:30:56]} {[%emt 00:00:04]} 2. c4 {[%clk
01:31:23]} {[%emt 00:00:05]} e6 {[%clk 01:31:23]} {[%emt 00:00:03]} 3. Nf3
{[%clk 01:31:45]} {[%emt 00:00:07]} Nf6 {[%clk 01:31:47]} {[%emt 00:00:06]} 4.
g3 {[%clk 01:32:10]} {[%emt 00:00:05]} Be7 {[%clk 01:32:10]} {[%emt 00:00:07]}
5. Bg2 {[%clk 01:32:30]} {[%emt 00:00:10]} O-O {[%clk 01:32:34]} {[%emt
00:00:06]} 6. O-O {[%clk 01:32:51]} {[%emt 00:00:09]} dxc4 {[%clk 01:32:57]}
{[%emt 00:00:08]} 7. Nc3 {[%clk 01:32:49]} {[%emt 00:00:32]} c5 {[%clk
01:31:31]} {[%emt 00:01:56]} 8. dxc5 {[%clk 01:27:32]} {[%emt 00:05:46]} Bxc5
{[%clk 01:31:42]} {[%emt 00:00:19]} 9. Ne5 {[%clk 01:27:07]} {[%emt 00:00:56]}
a6 {[%clk 01:25:28]} {[%emt 00:06:44]} 10. Bf4 {[%clk 01:21:02]} {[%emt
00:06:34]} Nh5 {[%clk 01:16:58]} {[%emt 00:09:01]} 11. Qxd8 {[%clk 01:15:16]}
{[%emt 00:06:16]} Rxd8 {[%clk 01:17:04]} {[%emt 00:00:24]} 12. Rad1 {[%clk
01:15:05]} {[%emt 00:00:41]} Nd7 {[%clk 01:13:01]} {[%emt 00:04:33]} 13. Nxd7
{[%clk 01:14:33]} {[%emt 00:01:02]} Rxd7 {[%clk 01:13:16]} {[%emt 00:00:15]} 14.
Ne4 {[%clk 01:06:46]} {[%emt 00:08:17]} Bd4 {[%clk 00:54:09]} {[%emt 00:19:38]}
15. Rd2 {[%clk 01:02:41]} {[%emt 00:04:35]} Nxf4 {[%clk 00:51:03]} {[%emt
00:03:35]} 16. gxf4 {[%clk 01:01:51]} {[%emt 00:01:19]} f5 {[%clk 00:48:54]}
{[%emt 00:02:40]} 17. Rfd1 {[%clk 00:58:56]} {[%emt 00:03:25]} Bxb2 {[%clk
00:41:09]} {[%emt 00:08:15]} 18. Rxd7 {[%clk 00:52:58]} {[%emt 00:06:27]} Bxd7
{[%clk 00:41:25]} {[%emt 00:00:14]} 19. Rxd7 {[%clk 00:52:58]} {[%emt
00:00:30]} fxe4 {[%clk 00:41:14]} {[%emt 00:00:41]} 20. Rxb7 {[%clk 00:45:56]}
{[%emt 00:07:31]} c3 {[%clk 00:40:03]} {[%emt 00:01:42]} 21. Bxe4 {[%clk
00:45:57]} {[%emt 00:00:28]} Rd8 {[%clk 00:37:48]} {[%emt 00:02:32]} 22. Rc7
{[%clk 00:39:07]} {[%emt 00:07:35]} Rd1+ {[%clk 00:35:51]} {[%emt 00:02:27]} 23.
Kg2 {[%clk 00:39:22]} {[%emt 00:00:14]} Ra1 {[%clk 00:35:07]} {[%emt 00:01:14]}
24. f5 {[%clk 00:38:32]} {[%emt 00:01:21]} exf5 {[%clk 00:25:55]} {[%emt
00:09:42]} 25. Bxf5 {[%clk 00:37:51]} {[%emt 00:01:09]} Kf8 {[%clk 00:19:41]}
{[%emt 00:06:45]} 26. Be6 {[%clk 00:37:20]} {[%emt 00:01:01]} Rd1 {[%clk
00:17:15]} {[%emt 00:02:56]} 27. Bb3 {[%clk 00:30:04]} {[%emt 00:07:46]} Rd2
{[%clk 00:15:46]} {[%emt 00:01:58]} 28. Kf3 {[%clk 00:28:34]} {[%emt 00:01:59]}
h6 {[%clk 00:14:47]} {[%emt 00:01:30]} 29. e4 {[%clk 00:26:15]} {[%emt
00:02:49]} Rd3+ {[%clk 00:14:47]} {[%emt 00:00:30]} 30. Kg2 {[%clk 00:26:06]}
{[%emt 00:00:39]} Rd2 {[%clk 00:13:01]} {[%emt 00:02:17]} 31. Kg3 {[%clk
00:18:20]} {[%emt 00:08:15]} Rd3+ {[%clk 00:09:05]} {[%emt 00:04:26]} 1/2-1/2

[Event "Mistrovství Čech mládeže 2023 - HD14"]
[Site "Harrachov, Czech Republic"]
[Date "2023.10.23"]
[Round "3.13"]
[White "Rudlof, Adam"]
[Black "Borecký, Andrej"]
[Result "1/2-1/2"]
[TimeControl "90m + 30s"]
[WhiteElo "1639"]
[BlackElo "1341"]

1. e4 {[%clk 01:30:57]} {[%emt 00:00:01]} c5 {[%clk 01:30:58]} {[%emt
00:00:03]} 2. Nf3 {[%clk 01:31:20]} {[%emt 00:00:06]} Nc6 {[%clk 01:31:25]}
{[%emt 00:00:04]} 3. d4 {[%clk 01:31:46]} {[%emt 00:00:04]} cxd4 {[%clk
01:31:49]} {[%emt 00:00:06]} 4. Nxd4 {[%clk 01:32:10]} {[%emt 00:00:05]} Nf6
{[%clk 01:32:15]} {[%emt 00:00:05]} 5. Nc3 {[%clk 01:32:35]} {[%emt 00:00:05]}
e5 {[%clk 01:32:38]} {[%emt 00:00:07]} 6. Ndb5 {[%clk 01:33:01]} {[%emt
00:00:04]} d6 {[%clk 01:33:02]} {[%emt 00:00:06]} 7. Bg5 {[%clk 01:33:28]}
{[%emt 00:00:04]} a6 {[%clk 01:33:29]} {[%emt 00:00:04]} 8. Na3 {[%clk
01:33:55]} {[%emt 00:00:03]} b5 {[%clk 01:33:53]} {[%emt 00:00:06]} 9. Nd5
{[%clk 01:34:20]} {[%emt 00:00:05]} Be7 {[%clk 01:34:16]} {[%emt 00:00:07]} 10.
Bxf6 {[%clk 01:34:45]} {[%emt 00:00:05]} Bxf6 {[%clk 01:34:40]} {[%emt
00:00:06]} 11. c3 {[%clk 01:35:13]} {[%emt 00:00:02]} Bg5 {[%clk 01:34:42]}
{[%emt 00:00:28]} 12. Nc2 {[%clk 01:35:34]} {[%emt 00:00:08]} O-O {[%clk
01:35:03]} {[%emt 00:00:09]} 13. a4 {[%clk 01:36:01]} {[%emt 00:00:04]} bxa4
{[%clk 01:34:33]} {[%emt 00:00:59]} 14. Rxa4 {[%clk 01:36:26]} {[%emt
00:00:05]} Ne7 {[%clk 01:33:52]} {[%emt 00:01:11]} 15. Nce3 {[%clk 01:33:32]}
{[%emt 00:03:24]} Bxe3 {[%clk 01:33:31]} {[%emt 00:00:51]} 16. Nxe3 {[%clk
01:33:43]} {[%emt 00:00:18]} Bb7 {[%clk 01:31:23]} {[%emt 00:02:38]} 17. Bd3
{[%clk 01:09:58]} {[%emt 00:24:15]} d5 {[%clk 01:27:00]} {[%emt 00:04:53]} 18.
exd5 {[%clk 01:10:14]} {[%emt 00:00:14]} Nxd5 {[%clk 01:27:21]} {[%emt
00:00:09]} 19. Nxd5 {[%clk 01:10:13]} {[%emt 00:00:30]} Qxd5 {[%clk 01:26:52]}
{[%emt 00:00:59]} 20. Be4 {[%clk 01:08:23]} {[%emt 00:02:20]} Qxd1+ {[%clk
01:24:50]} {[%emt 00:02:32]} 21. Kxd1 {[%clk 01:08:36]} {[%emt 00:00:17]} Bxe4
{[%clk 01:24:15]} {[%emt 00:01:04]} 22. Rxe4 {[%clk 01:07:20]} {[%emt
00:01:46]} f6 {[%clk 01:22:51]} {[%emt 00:01:54]} 23. Kc2 {[%clk 01:06:16]}
{[%emt 00:01:33]} Kf7 {[%clk 01:21:46]} {[%emt 00:01:36]} 24. Rd1 {[%clk
00:59:30]} {[%emt 00:07:16]} Rad8 {[%clk 01:20:32]} {[%emt 00:01:44]} 25. Rxd8
{[%clk 00:52:34]} {[%emt 00:07:26]} Rxd8 {[%clk 01:20:54]} {[%emt 00:00:08]} 26.
Rb4 {[%clk 00:52:55]} {[%emt 00:00:07]} Ke6 {[%clk 01:15:31]} {[%emt 00:05:55]}
27. g4 {[%clk 00:21:21]} {[%emt 00:32:04]} g6 {[%clk 01:14:36]} {[%emt
00:01:25]} 1/2-1/2

[Event "Mistrovství Čech mládeže 2023 - HD14"]
[Site "Harrachov, Czech Republic"]
[Date "2023.10.23"]
[Round "3.14"]
[White "Jančík, Vojtěch"]
[Black "Sboev, Kirill"]
[Result "0-1"]
[TimeControl "90m + 30s"]
[WhiteElo "1219"]
[BlackElo "1556"]

1. e4 {[%clk 01:30:36]} {[%emt 00:00:23]} e5 {[%clk 01:30:55]} {[%emt
00:00:05]} 2. Nf3 {[%clk 01:30:44]} {[%emt 00:00:22]} Nc6 {[%clk 01:31:18]}
{[%emt 00:00:08]} 3. Bc4 {[%clk 01:31:02]} {[%emt 00:00:13]} Nf6 {[%clk
01:31:38]} {[%emt 00:00:09]} 4. d3 {[%clk 01:30:59]} {[%emt 00:00:32]} Bc5
{[%clk 01:31:59]} {[%emt 00:00:10]} 5. c3 {[%clk 01:31:05]} {[%emt 00:00:24]}
a6 {[%clk 01:32:14]} {[%emt 00:00:15]} 6. Bb3 {[%clk 01:31:15]} {[%emt
00:00:20]} d6 {[%clk 01:32:34]} {[%emt 00:00:10]} 7. O-O {[%clk 01:31:38]}
{[%emt 00:00:07]} O-O {[%clk 01:32:40]} {[%emt 00:00:24]} 8. Re1 {[%clk
01:31:43]} {[%emt 00:00:25]} Ng4 {[%clk 01:32:23]} {[%emt 00:00:47]} 9. Be3
{[%clk 01:31:03]} {[%emt 00:01:10]} Nxe3 {[%clk 01:30:09]} {[%emt 00:02:45]} 10.
fxe3 {[%clk 01:31:26]} {[%emt 00:00:07]} Be6 {[%clk 01:27:22]} {[%emt
00:03:17]} 11. Kh1 {[%clk 01:29:20]} {[%emt 00:02:36]} Bxb3 {[%clk 01:26:23]}
{[%emt 00:01:28]} 12. Qxb3 {[%clk 01:29:25]} {[%emt 00:00:25]} Qe7 {[%clk
01:24:35]} {[%emt 00:02:18]} 13. Qxb7 {[%clk 01:28:28]} {[%emt 00:01:27]} Na5
{[%clk 01:24:30]} {[%emt 00:00:35]} 14. Qxa8 {[%clk 01:19:35]} {[%emt
00:09:23]} Rxa8 {[%clk 01:24:53]} {[%emt 00:00:07]} 15. b4 {[%clk 01:20:00]}
{[%emt 00:00:05]} Bb6 {[%clk 01:24:32]} {[%emt 00:00:51]} 16. bxa5 {[%clk
01:19:53]} {[%emt 00:00:36]} Bxa5 {[%clk 01:24:57]} {[%emt 00:00:06]} 17. d4
{[%clk 01:17:57]} {[%emt 00:02:25]} Rb8 {[%clk 01:24:47]} {[%emt 00:00:40]} 18.
Re2 {[%clk 01:16:09]} {[%emt 00:02:18]} g5 {[%clk 01:22:20]} {[%emt 00:02:58]}
19. Nfd2 {[%clk 01:12:44]} {[%emt 00:03:55]} Rb2 {[%clk 01:21:31]} {[%emt
00:01:19]} 20. Kg1 {[%clk 01:06:43]} {[%emt 00:06:31]} Qf6 {[%clk 01:17:19]}
{[%emt 00:04:42]} 21. Rf2 {[%clk 01:05:50]} {[%emt 00:01:22]} Qe6 {[%clk
01:16:18]} {[%emt 00:01:32]} 22. Kf1 {[%clk 01:03:14]} {[%emt 00:03:06]} Rc2
{[%clk 01:13:32]} {[%emt 00:03:17]} 23. Nb3 {[%clk 01:01:13]} {[%emt 00:02:31]}
Qc4+ {[%clk 01:12:10]} {[%emt 00:01:52]} 24. Kg1 {[%clk 00:59:44]} {[%emt
00:01:58]} Rxf2 {[%clk 01:12:19]} {[%emt 00:00:20]} 25. Kxf2 {[%clk 01:00:08]}
{[%emt 00:00:06]} Bxc3 {[%clk 01:12:29]} {[%emt 00:00:21]} 26. Nxc3 Qxc3 {[%clk
01:12:51]} 27. Rd1 {[%clk 00:57:12]} {[%emt 00:00:22]} Qc2+ {[%clk 01:11:22]}
{[%emt 00:01:59]} 28. Rd2 {[%clk 00:55:18]} {[%emt 00:02:23]} Qxe4 {[%clk
01:11:24]} {[%emt 00:00:29]} 29. dxe5 {[%clk 00:53:48]} {[%emt 00:02:00]} Qxe5
{[%clk 01:11:21]} {[%emt 00:00:33]} 30. Nd4 {[%clk 00:53:19]} {[%emt 00:00:59]}
Qxh2 {[%clk 01:10:25]} {[%emt 00:01:26]} 31. Rc2 {[%clk 00:52:19]} {[%emt
00:01:30]} c5 {[%clk 01:09:17]} {[%emt 00:01:38]} 32. Nf5 {[%clk 00:52:15]}
{[%emt 00:00:34]} Qe5 {[%emt 00:03:10]} 33. Ng3 {[%clk 00:50:41]} {[%emt
00:00:01]} h5 {[%clk 01:07:51]} {[%emt 00:01:19]} 34. Re2 {[%clk 00:47:58]}
{[%emt 00:03:12]} h4 {[%clk 01:07:38]} {[%emt 00:00:43]} 35. Nf1 {[%clk
00:48:15]} {[%emt 00:00:13]} g4 {[%clk 01:06:52]} {[%emt 00:01:16]} 36. g3
{[%clk 00:43:41]} {[%emt 00:05:04]} h3 {[%clk 01:06:22]} {[%emt 00:01:00]} 37.
Kg1 {[%clk 00:44:03]} {[%emt 00:00:07]} d5 {[%clk 01:06:25]} {[%emt 00:00:28]}
0-1

[Event "Mistrovství Čech mládeže 2023 - HD14"]
[Site "Harrachov, Czech Republic"]
[Date "2023.10.23"]
[Round "3.15"]
[White "Mezera, Antonín"]
[Black "Pásek, Josef"]
[Result "1-0"]
[TimeControl "90m + 30s"]
[WhiteElo "1166"]
[BlackElo "1555"]

1. e4 {[%clk 01:30:32]} {[%emt 00:00:27]} c5 {[%clk 01:30:52]} {[%emt
00:00:08]} 2. Nf3 {[%clk 01:30:50]} {[%emt 00:00:11]} Nc6 {[%clk 01:31:15]}
{[%emt 00:00:08]} 3. Bb5 {[%clk 01:31:10]} {[%emt 00:00:10]} e5 {[%clk
01:31:27]} {[%emt 00:00:17]} 4. d3 {[%clk 01:31:06]} {[%emt 00:00:34]} Nge7
{[%clk 01:25:11]} {[%emt 00:06:46]} 5. O-O {[%clk 01:23:49]} {[%emt 00:07:47]}
g6 {[%clk 01:22:16]} {[%emt 00:03:25]} 6. Nc3 {[%clk 01:15:11]} {[%emt
00:09:08]} Bg7 {[%clk 01:22:09]} {[%emt 00:00:38]} 7. Re1 {[%clk 01:14:43]}
{[%emt 00:00:58]} O-O {[%clk 01:21:43]} {[%emt 00:00:56]} 8. Be3 {[%clk
01:12:45]} {[%emt 00:02:27]} d6 {[%clk 01:21:06]} {[%emt 00:01:08]} 9. h3
{[%clk 01:08:45]} {[%emt 00:04:30]} f5 {[%clk 01:19:45]} {[%emt 00:01:51]} 10.
exf5 {[%clk 01:09:02]} {[%emt 00:00:14]} Nxf5 {[%clk 01:11:40]} {[%emt
00:08:35]} 11. Bc4+ {[%clk 01:08:59]} {[%emt 00:00:33]} Kh8 {[%clk 01:11:34]}
{[%emt 00:00:35]} 12. Bg5 {[%clk 01:07:59]} {[%emt 00:01:30]} Qb6 {[%clk
01:10:28]} {[%emt 00:01:35]} 13. Bb3 {[%clk 01:00:20]} {[%emt 00:08:11]} Ncd4
{[%clk 00:59:22]} {[%emt 00:11:36]} 14. Nxd4 {[%clk 00:58:27]} {[%emt
00:02:23]} Nxd4 {[%clk 00:59:40]} {[%emt 00:00:12]} 15. Nd5 {[%clk 00:58:30]}
{[%emt 00:00:27]} Qc6 {[%clk 00:58:46]} {[%emt 00:01:23]} 16. Ne7 {[%clk
00:57:37]} {[%emt 00:01:24]} Qd7 {[%clk 00:59:02]} {[%emt 00:00:13]} 17. Re4
{[%clk 00:44:22]} {[%emt 00:13:45]} Nxb3 {[%clk 00:50:52]} {[%emt 00:08:41]} 18.
axb3 {[%clk 00:44:23]} {[%emt 00:00:29]} Bf6 {[%clk 00:48:43]} {[%emt
00:02:39]} 19. Bxf6+ {[%clk 00:44:01]} {[%emt 00:00:52]} Rxf6 {[%clk 00:49:05]}
{[%emt 00:00:08]} 20. Nd5 {[%clk 00:44:17]} {[%emt 00:00:13]} Rf8 {[%clk
00:48:13]} {[%emt 00:01:23]} 21. Nb6 {[%clk 00:40:59]} {[%emt 00:03:48]} Qf7
{[%clk 00:48:24]} {[%emt 00:00:18]} 22. Nxa8 {[%clk 00:37:51]} {[%emt
00:03:39]} Qxf2+ {[%clk 00:48:44]} {[%emt 00:00:09]} 23. Kh2 {[%clk 00:38:12]}
d5 {[%clk 00:41:48]} {[%emt 00:07:35]} 24. Re2 {[%clk 00:38:20]} {[%emt
00:00:22]} Qh4 {[%clk 00:39:52]} {[%emt 00:02:26]} 25. Qe1 {[%clk 00:38:24]}
{[%emt 00:00:27]} Qd4 {[%clk 00:35:51]} {[%emt 00:04:31]} 26. Rxe5 {[%clk
00:38:15]} {[%emt 00:00:39]} Bf5 {[%clk 00:25:34]} {[%emt 00:10:48]} 27. Re8
{[%clk 00:37:41]} {[%emt 00:01:04]} Rxe8 {[%clk 00:25:22]} {[%emt 00:00:41]} 28.
Qxe8+ {[%clk 00:38:09]} {[%emt 00:00:02]} Kg7 {[%clk 00:25:45]} {[%emt
00:00:06]} 29. Re1 {[%clk 00:37:29]} {[%emt 00:01:10]} Qf4+ {[%clk 00:24:55]}
{[%emt 00:01:21]} 30. Kh1 {[%clk 00:37:59]} Qf2 {[%clk 00:25:05]} {[%emt
00:00:20]} 31. Qe7+ {[%clk 00:37:35]} {[%emt 00:00:54]} Kh6 {[%clk 00:24:22]}
{[%emt 00:01:14]} 32. Qe3+ {[%clk 00:38:04]} {[%emt 00:00:01]} 1-0